[Event "Lliga Catalana 2024"]
[Site "Catalonia"]
[Date "2024.01.27"]
[Round "2.5"]
[White "Sabria Batlle, Pol"]
[Black "Ramirez Garcia, Jorge Alberto"]
[Result "1/2-1/2"]
[ECO "C10"]
[WhiteElo "2282"]
[BlackElo "2249"]
[Annotator "NA RC"]
[PlyCount "101"]
[EventDate "2024.01.18"]
[EventType "team-tourn"]
[EventCountry "ESP"]
[SourceTitle "playchess.com"]
[Source "ChessBase"]
[SourceQuality "1"]
[TimeControl "5400+30"]

1. e4 {[%emt 0:00:02]} e6 {[%emt 0:00:07]} 2. d4 {[%emt 0:00:03]} d5 {[%emt 0:00:06]} 3. Nc3 {[%emt 0:00:27]} dxe4 {[%emt 0:00:06]} 4. Nxe4 {[%emt 0:00:07]} Bd7 {[%emt 0:00:21]} 5. Nf3 {[%emt 0:02:39]} Bc6 {[%emt 0:00:07]} 6. Bd3 {[%emt 0:00:16]} Nd7 {[%emt 0:00:11]} 7. O-O {[%emt 0:01:04]} Ngf6 {[%emt 0:00:07]} 8. Ng3 {[%emt 0:01:29]} g6 {[%emt 0:00:58]} 9. Bg5 {[%emt 0:01:48]} Bg7 {[%emt 0:02:32]} 10. c4 {[%emt 0:05:51]} Bxf3 {[%emt 0:07:10]} 11. Qxf3 {[%emt 0:00:04]} c6 {[%emt 0:00:13]} 12. Ne4 {[%emt 0:04:13]} O-O {[%emt 0:06:02]} 13. Rad1 {[%emt 0:04:02]} a5 {[%emt 0:11:05]} 14. a4 {[%emt 0:02:39]} h6 {[%emt 0:03:53]} 15. Bh4 {[%emt 0:08:56]} Qe7 {[%emt 0:02:09]} 16. Rfe1 {[%emt 0:06:39]} g5 {[%emt 0:01:20]} 17. Nxf6+ {[%emt 0:13:10]} Qxf6 {[%emt 0:01:16]} 18. Qe4 {[%emt 0:00:13]} Qf5 {[%emt 0:08:32]} 19. Qe2 {[%emt 0:00:58]} Qf6 {[%emt 0:00:40]} 20. Bg3 {[%emt 0:00:55]} Rfd8 {[%emt 0:00:54]} 21. Bc7 {[%emt 0:12:55]} Re8 {[%emt 0:02:34]} 22. Bb1 {[%emt 0:04:09]} Nf8 {[%emt 0:07:09]} 23. Qd2 {[%emt 0:00:35]} Qe7 {[%emt 0:05:47]} 24. Bxa5 {[%emt 0:00:19]} Bxd4 {[%emt 0:00:49]} 25. Bb4 {[%emt 0:03:09]} Bc5 {[%emt 0:10:05]} 26. Bc3 {[%emt 0:00:05]} Rxa4 {[%emt 0:00:31]} 27. b3 {[%emt 0:01:02]} Raa8 {[%emt 0:01:37]} 28. b4 {[%emt 0:02:37]} Rad8 {[%emt 0:08:21]} 29. Qb2 {[%emt 0:00:04]} Rxd1 {[%emt 0:00:22]} 30. Rxd1 {[%emt 0:00:05]} Bd6 {[%emt 0:03:10]} 31. Bf6 {[%emt 0:01:28]} Qc7 {[%emt 0:00:21]} 32. h4 {[%emt 0:00:57]} Nh7 {[%emt 0:06:21]} 33. hxg5 {[%emt 0:07:42]} hxg5 {[%emt 0:00:03]} 34. Bxh7+ {[%emt 0:09:51]} Kxh7 {[%emt 0:00:02]} 35. Qc2+ {[%emt 0:00:25]} Kg8 {[%emt 0:00:59]} 36. Bxg5 {[%emt 0:00:46]} Be7 {[%emt 0:00:44]} 37. Bxe7 {[%emt 0:03:14]} Qxe7 {[%emt 0:00:16]} 38. c5 {[%emt 0:00:15]} Rd8 {[%emt 0:00:18]} 39. Rd3 {[%emt 0:00:41]} Rxd3 {[%emt 0:00:29]} 40. Qxd3 {[%emt 0:00:06]} Qh4 {[%emt 0:00:24]} 41. Qd2 {[%emt 0:01:08]} Kg7 {[%emt 0:01:19]} 42. Qb2+ {[%emt 0:00:51]} Kg6 {[%emt 0:01:12]} 43. Qc2+ {[%emt 0:00:22]} Kf6 {[%emt 0:01:11]} 44. Qb2+ {[%emt 0:00:58]} Kg6 {[%emt 0:00:55]} 45. Qc2+ {[%emt 0:00:06]} Kg5 {[%emt 0:02:26]} 46. Qc3 {[%emt 0:01:02]} Kg6 {[%emt 0:02:49]} 47. Qd3+ {[%emt 0:00:08]} Kg7 {[%emt 0:00:37]} 48. Qd2 {[%emt 0:00:20]} Kg6 {[%emt 0:00:57]} 49. Qd3+ {[%emt 0:00:30]} Kg7 {[%emt 0:00:06]} 50. Qd2 {[%emt 0:00:27]} Kg6 {[%emt 0:00:07]} 51. Qd3+ {[%emt 0:00:54]} 1/2-1/2

[Event "Lliga Catalana 2024"]
[Site "Catalonia"]
[Date "2024.01.27"]
[Round "2.6"]
[White "Pinero Fernandez, Xavier"]
[Black "Aymerich Verdaguer, Eduard"]
[Result "1-0"]
[ECO "A45"]
[WhiteElo "2266"]
[BlackElo "2218"]
[Annotator "NA RC"]
[PlyCount "93"]
[EventDate "2024.01.18"]
[EventType "team-tourn"]
[EventCountry "ESP"]
[SourceTitle "playchess.com"]
[Source "ChessBase"]
[SourceQuality "1"]
[TimeControl "5400+30"]

1. d4 {[%emt 0:00:21]} Nf6 {[%emt 0:00:40]} 2. Bf4 {[%emt 0:01:37]} g6 {[%emt 0:03:23]} 3. Nc3 {[%emt 0:00:18]} d5 {[%emt 0:00:25]} 4. e3 {[%emt 0:00:14]} Bg7 {[%emt 0:00:44]} 5. Nb5 {[%emt 0:00:22]} Na6 {[%emt 0:00:40]} 6. Nc3 {[%emt 0:00:17]} Nb8 {[%emt 0:04:37]} 7. Nb5 {[%emt 0:01:12]} Na6 {[%emt 0:00:58]} 8. h3 {[%emt 0:01:31]} O-O {[%emt 0:01:02]} 9. Nf3 {[%emt 0:00:15]} Ne4 {[%emt 0:02:00]} 10. Bd3 {[%emt 0:02:30]} c6 {[%emt 0:04:30]} 11. Nc3 {[%emt 0:00:14]} Nxc3 {[%emt 0:03:29]} 12. bxc3 {[%emt 0:00:11]} Qa5 {[%emt 0:00:06]} 13. Qd2 {[%emt 0:10:51]} Nc5 {[%emt 0:02:00]} 14. c4 {[%emt 0:11:16]} Nxd3+ {[%emt 0:13:37]} 15. cxd3 {[%emt 0:00:17]} Qxd2+ {[%emt 0:15:02]} 16. Kxd2 {[%emt 0:01:26]} dxc4 {[%emt 0:03:40]} 17. dxc4 {[%emt 0:00:11]} c5 {[%emt 0:00:04]} 18. Rac1 {[%emt 0:19:14]} cxd4 {[%emt 0:03:21]} 19. exd4 {[%emt 0:00:14]} Rd8 {[%emt 0:00:23]} 20. Ke3 {[%emt 0:04:10]} Bd7 {[%emt 0:07:17]} 21. Rhd1 {[%emt 0:17:29]} Rac8 {[%emt 0:01:58]} 22. g4 {[%emt 0:09:39]} h6 {[%emt 0:03:53]} 23. Rd3 {[%emt 0:07:52]} g5 {[%emt 0:09:09]} 24. Be5 {[%emt 0:00:47]} f6 {[%emt 0:00:06]} 25. Bg3 {[%emt 0:00:13]} f5 {[%emt 0:00:06]} 26. gxf5 {[%emt 0:02:07]} Bxf5 {[%emt 0:00:02]} 27. Rb3 {[%emt 0:00:41]} b6 {[%emt 0:02:58]} 28. h4 {[%emt 0:00:25]} Rc6 {[%emt 0:04:29]} 29. hxg5 {[%emt 0:00:42]} hxg5 {[%emt 0:00:02]} 30. Rb5 {[%emt 0:01:44]} e6 {[%emt 0:02:09]} 31. Be5 {[%emt 0:01:57]} Rdc8 {[%emt 0:11:34]} 32. Bxg7 {[%emt 0:02:25]} Rxc4 {[%emt 0:00:27]} 33. Rxc4 {[%emt 0:00:43]} Rxc4 {[%emt 0:00:02]} 34. Bf6 {[%emt 0:01:12]} Rc3+ {[%emt 0:00:08]} 35. Ke2 {[%emt 0:00:23]} Kf7 {[%emt 0:00:06]} 36. Bxg5 {[%emt 0:00:42]} Rc2+ {[%emt 0:01:12]} 37. Ke3 {[%emt 0:00:40]} Rxa2 {[%emt 0:01:12]} 38. Ne5+ {[%emt 0:00:17]} Kg7 {[%emt 0:00:05]} 39. Rb3 {[%emt 0:00:54]} Rc2 {[%emt 0:00:58]} 40. f3 {[%emt 0:00:13]} Rc8 {[%emt 0:01:12]} 41. Kf4 {[%emt 0:00:22]} Bc2 {[%emt 0:00:14]} 42. Rb2 {[%emt 0:00:18]} Ba4 {[%emt 0:00:40]} 43. Rg2 {[%emt 0:01:34]} Rc3 {[%emt 0:00:48]} 44. Be7+ {[%emt 0:00:22]} Kh7 {[%emt 0:00:22]} 45. Bf6 {[%emt 0:00:36]} Rc2 {[%emt 0:00:35]} 46. Rg1 {[%emt 0:00:40]} Rh2 {[%emt 0:00:34]} 47. Rg7+ {[%emt 0:00:11]} 1-0

[Event "Lliga Catalana 2024"]
[Site "Catalonia"]
[Date "2024.01.27"]
[Round "2.6"]
[White "Alcala Gonzalez, Cesar"]
[Black "Kozlov, Gennady"]
[Result "1-0"]
[ECO "D35"]
[WhiteElo "2247"]
[BlackElo "2404"]
[Annotator "RC"]
[PlyCount "133"]
[EventDate "2024.01.18"]
[EventType "team-tourn"]
[EventCountry "ESP"]
[SourceTitle "playchess.com"]
[Source "ChessBase"]
[SourceQuality "1"]
[TimeControl "5400+30"]

1. d4 {[%emt 0:00:03]} e6 {[%emt 0:00:12]} 2. c4 {[%emt 0:00:07]} Nf6 {[%emt 0:00:02]} 3. Nc3 {[%emt 0:00:05]} d5 {[%emt 0:00:04]} 4. cxd5 {[%emt 0:00:20]} exd5 {[%emt 0:00:02]} 5. Bg5 {[%emt 0:00:08]} Be7 {[%emt 0:00:03]} 6. e3 {[%emt 0:00:09]} c6 {[%emt 0:00:19]} 7. Bd3 {[%emt 0:00:07]} Nbd7 {[%emt 0:00:06]} 8. h3 {[%emt 0:01:06]} Nf8 {[%emt 0:01:03]} 9. Nf3 {[%emt 0:07:58]} Ne6 {[%emt 0:04:53]} 10. Bh4 g6 {[%emt 1:28:46]} 11. O-O {[%emt 1:25:57]} Nh5 {[%emt 0:00:00]} 12. Bxe7 {[%emt 0:00:00]} Qxe7 {[%emt 0:00:00]} 13. e4 {[%emt 0:00:00]} dxe4 {[%emt 0:00:00]} 14. Bxe4 {[%emt 0:00:00]} Nhf4 {[%emt 0:00:00]} 15. d5 {[%emt 0:00:00]} cxd5 {[%emt 0:00:00]} 16. Nxd5 {[%emt 0:00:00]} Nxd5 {[%emt 0:00:00]} 17. Qxd5 {[%emt 0:00:00]} O-O {[%emt 0:00:00]} 18. Rfe1 {[%emt 0:00:00]} Nf4 {[%emt 0:00:00]} 19. Qd4 {[%emt 0:00:00]} Rd8 {[%emt 0:00:00]} 20. Bxb7 {[%emt 0:00:00]} Qxe1+ {[%emt 0:00:00]} 21. Rxe1 {[%emt 0:00:00]} Rxd4 {[%emt 0:00:00]} 22. Bxa8 {[%emt 0:00:00]} Rc4 {[%emt 0:00:00]} 23. b3 {[%emt 0:00:00]} Rc7 {[%emt 0:00:00]} 24. Nd4 {[%emt 0:00:00]} a6 {[%emt 0:00:00]} 25. h4 {[%emt 0:00:00]} Kg7 {[%emt 0:00:00]} 26. g3 {[%emt 0:00:00]} Nd3 {[%emt 0:00:00]} 27. Re3 {[%emt 0:00:00]} Rc1+ {[%emt 0:00:00]} 28. Kg2 {[%emt 0:00:00]} Rd1 {[%emt 0:00:00]} 29. Nf3 {[%emt 0:00:00]} Be6 {[%emt 0:00:00]} 30. Ng5 {[%emt 0:00:00]} Rd2 {[%emt 0:00:00]} 31. Ne4 {[%emt 0:00:00]} Rd1 {[%emt 0:00:00]} 32. Nc3 {[%emt 0:00:00]} Rd2 {[%emt 0:00:00]} 33. Re2 {[%emt 0:00:00]} Rxe2 {[%emt 0:11:30]} 34. Nxe2 {[%emt 0:11:30]} Kf6 {[%emt 0:00:00]} 35. Kf3 {[%emt 0:00:00]} Ke5 {[%emt 0:00:00]} 36. Ke3 {[%emt 0:00:00]} Nb4 {[%emt 0:00:00]} 37. f4+ {[%emt 0:00:00]} Kf5 {[%emt 0:00:00]} 38. Be4+ {[%emt 0:00:00]} Kg4 {[%emt 0:00:00]} 39. a3 {[%emt 0:00:00]} Nd5+ {[%emt 0:00:00]} 40. Kf2 {[%emt 0:00:00]} Nf6 {[%emt 0:00:00]} 41. Bf3+ {[%emt 0:00:00]} Kh3 {[%emt 0:00:00]} 42. Nd4 {[%emt 0:00:00]} Ng4+ {[%emt 0:00:00]} 43. Bxg4+ {[%emt 0:00:00]} Bxg4 {[%emt 0:00:00]} 44. b4 {[%emt 0:00:54]} Bd7 {[%emt 0:00:00]} 45. Nb3 {[%emt 0:00:46]} Kg4 {[%emt 0:00:00]} 46. Nc5 {[%emt 0:00:08]} Bb5 {[%emt 0:00:00]} 47. a4 {[%emt 0:00:24]} Bc4 {[%emt 0:00:00]} 48. Ne4 {[%emt 0:00:10]} h6 {[%emt 0:00:00]} 49. Nd6 {[%emt 0:00:30]} Bd5 {[%emt 0:00:00]} 50. b5 {[%emt 0:00:04]} axb5 {[%emt 0:00:00]} 51. axb5 {[%emt 0:00:01]} f5 {[%emt 0:00:00]} 52. b6 {[%emt 0:02:56]} g5 {[%emt 0:00:00]} 53. Nf7 {[%emt 0:00:22]} gxf4 {[%emt 0:00:00]} 54. Nxh6+ {[%emt 0:00:09]} Kh5 {[%emt 0:00:00]} 55. Nxf5 {[%emt 0:00:40]} Kg4 {[%emt 0:00:00]} 56. Nh6+ {[%emt 0:01:45]} Kh5 {[%emt 0:00:00]} 57. gxf4 {[%emt 0:00:05]} Kxh6 {[%emt 0:00:00]} 58. Ke3 {[%emt 0:00:02]} Kg6 {[%emt 0:00:00]} 59. Kd4 {[%emt 0:00:05]} Bf3 {[%emt 0:00:00]} 60. Ke5 {[%emt 0:00:04]} Kf7 {[%emt 0:00:00]} 61. f5 {[%emt 0:00:59]} Ke7 {[%emt 0:00:00]} 62. h5 {[%emt 0:00:17]} Kf7 {[%emt 0:00:00]} 63. h6 {[%emt 0:00:14]} Kg8 {[%emt 0:00:00]} 64. Ke6 {[%emt 0:00:15]} Kh7 {[%emt 0:00:00]} 65. Ke7 {[%emt 0:00:12]} Kxh6 {[%emt 0:00:00]} 66. f6 {[%emt 0:00:01]} Bd5 {[%emt 0:00:00]} 67. f7 {[%emt 0:00:04]} 1-0

[Event "Lliga Catalana 2024"]
[Site "Catalonia"]
[Date "2024.01.27"]
[Round "2.7"]
[White "Juan Albert, Garcia Caro"]
[Black "Hernando Rodrigo, Julio Antonio"]
[Result "0-1"]
[ECO "C00"]
[WhiteElo "2205"]
[BlackElo "2207"]
[Annotator "TA"]
[PlyCount "42"]
[EventDate "2024.01.18"]
[EventType "team-tourn"]
[EventCountry "ESP"]
[SourceTitle "playchess.com"]
[Source "ChessBase"]
[SourceQuality "1"]
[TimeControl "5400+30"]

{[%evp 9,42,-2,-4,-27,-27,-44,0,-6,0,-24,-15,-29,-26,-44,-39,-61,-62,-131,-147,-154,-143,-415,-420,-471,-469,-454,-476,-578,-570,-657,-664,-745,-730,-684,-674]} 1. e4 {[%emt 0:00:08]} e6 {[%emt 0:00:05]} 2. d3 {[%emt 0:00:31]} d5 {[%emt 0:00:25]} 3. Nd2 {[%emt 0:00:10]} Nc6 {[%emt 0:00:11]} 4. Ngf3 {[%emt 0:07:14]} e5 {[%emt 0:03:40]} 5. h3 {[%emt 0:07:30]} Nf6 {[%emt 0:00:35]} 6. Qe2 {[%emt 0:03:14]} Bc5 {[%emt 0:05:35]} 7. Nb3 {[%emt 0:05:41]} dxe4 {[%emt 0:03:43]} 8. dxe4 {[%emt 0:00:34] The position is equal.} Bb6 {[%emt 0:00:28]} 9. c3 {[%emt 0:06:25]} O-O {[%emt 0:02:04]} 10. Bg5 {[%emt 0:05:45]} h6 {[%emt 0:02:50]} 11. Be3 {[%emt 0:04:35]} Qe7 {[%emt 0:04:08]} ({And not} 11... Nxe4 12. Bxb6 Nxc3 13. Bxc7 $16 (13. bxc3 axb6 14. Qe3 Be6 $16)) 12. g4 {[%emt 0:10:05]} Be6 {[%emt 0:03:55]} ({Not} 12... Nxe4 13. Bxb6 axb6 14. Qxe4 $16) 13. Bg2 {[%emt 0:04:42]} (13. Nbd2 $15) 13... Nxe4 $17 {[%emt 0:03:49] Black is more active.} 14. Bxb6 {[%emt 0:01:24]} axb6 {[%emt 0:00:13]} 15. Nxe5 $2 {[%emt 0:13:07][%mdl 8192] [#] Now White is beyond hope.} (15. Qxe4 $17 Bxb3 16. Nd2 Bxa2 (16... Rxa2 17. Nxb3 Rxb2 18. Nd2 $16) 17. O-O) 15... Nxe5 $19 {[%emt 0:02:10]} 16. Qxe4 {[%emt 0:03:38]} Bxb3 {[%emt 0:03:12] Black is clearly winning.} 17. O-O {[%emt 0:01:18]} Rxa2 {[%emt 0:01:53]} 18. Rae1 {[%emt 0:13:07]} f6 {[%emt 0:01:59]} 19. Qxb7 {[%emt 0:02:39]} Rxb2 {[%emt 0:01:20]} 20. Bd5+ {[%emt 0:00:13]} Bxd5 {[%emt 0:00:22]} 21. Qxd5+ {[%emt 0:00:04]} Qf7 {[%emt 0:00:19] Weighted Error Value: White=0.58/Black=0.06 (flawless) .  Loses game:     	White=1     	---        Mistake:       	White=1     	---        Inaccurate:     	---       	Black=1      OK:         	---       	Black=8      Best:        	White=1     	---} 0-1

[Event "Lliga Catalana 2024"]
[Site "Catalonia"]
[Date "2024.01.27"]
[Round "2.7"]
[White "Juan Bartroli, Marc"]
[Black "Martin Barcelo, Carles"]
[Result "0-1"]
[ECO "A49"]
[WhiteElo "2140"]
[BlackElo "2222"]
[Annotator "ChessBase"]
[PlyCount "130"]
[EventDate "2024.01.18"]
[EventType "team-tourn"]
[EventCountry "ESP"]
[SourceTitle "playchess.com"]
[Source "ChessBase"]
[SourceQuality "1"]
[TimeControl "5400+30"]

1. Nf3 {[%emt 0:00:05]} Nf6 {[%emt 0:01:05]} 2. b3 {[%emt 0:00:26]} g6 {[%emt 0:00:16]} 3. Bb2 {[%emt 0:00:08]} Bg7 {[%emt 0:00:06]} 4. g3 {[%emt 0:00:25]} O-O {[%emt 0:00:36]} 5. Bg2 {[%emt 0:00:12]} d6 {[%emt 0:00:25]} 6. d4 {[%emt 0:00:16]} b5 {[%emt 0:00:33]} 7. Nfd2 {[%emt 0:01:11]} c6 {[%emt 0:00:23]} 8. O-O {[%emt 0:00:13]} d5 {[%emt 0:03:34]} 9. e4 {[%emt 0:10:08]} dxe4 {[%emt 0:01:04]} 10. Nxe4 {[%emt 0:00:10]} Nxe4 {[%emt 0:00:31]} 11. Bxe4 {[%emt 0:00:09]} Be6 {[%emt 0:00:19]} 12. Qe2 {[%emt 0:14:08]} Bxd4 {[%emt 0:15:25]} 13. c3 {[%emt 0:09:26]} Bg7 {[%emt 0:05:01]} 14. Rd1 {[%emt 0:00:19]} Qb6 {[%emt 0:04:52]} 15. Na3 {[%emt 0:11:32]} Nd7 {[%emt 0:02:45]} 16. Nc2 {[%emt 0:01:54]} Nf6 {[%emt 0:02:45]} 17. Bg2 {[%emt 0:08:04]} Bg4 {[%emt 0:03:44]} 18. Bf3 {[%emt 0:00:15]} Bxf3 {[%emt 0:00:15]} 19. Qxf3 {[%emt 0:00:02]} Nd5 {[%emt 0:00:28]} 20. Nd4 {[%emt 0:02:08]} Rad8 {[%emt 0:14:09]} 21. Rd2 {[%emt 0:04:45]} Nxc3 {[%emt 0:14:36]} 22. Qxc3 {[%emt 0:07:40]} c5 {[%emt 0:00:33]} 23. Qe3 {[%emt 0:01:16]} Rxd4 {[%emt 0:00:06]} 24. Rxd4 {[%emt 0:09:11]} cxd4 {[%emt 0:03:28]} 25. Qxe7 {[%emt 0:00:16]} a6 {[%emt 0:05:33]} 26. Rd1 {[%emt 0:03:47]} Rd8 {[%emt 0:03:42]} 27. Qe4 {[%emt 0:02:06]} Qd6 {[%emt 0:01:36]} 28. Qd3 {[%emt 0:06:38]} Qd5 {[%emt 0:00:59]} 29. h4 {[%emt 0:02:32]} h5 {[%emt 0:00:04]} 30. Re1 {[%emt 0:01:16]} Bf6 {[%emt 0:00:06]} 31. Re2 {[%emt 0:01:15]} Kg7 {[%emt 0:01:04]} 32. Re1 {[%emt 0:00:35]} Kh7 {[%emt 0:04:39]} 33. Re2 {[%emt 0:00:48]} Kg8 {[%emt 0:00:14]} 34. Re1 {[%emt 0:00:23]} Rc8 {[%emt 0:00:51]} 35. Re4 {[%emt 0:01:15]} a5 {[%emt 0:03:27]} 36. Re1 {[%emt 0:00:59]} a4 {[%emt 0:03:28]} 37. Re4 {[%emt 0:01:07]} Qf5 {[%emt 0:04:12]} 38. Kg2 {[%emt 0:01:53]} Rd8 {[%emt 0:01:04]} 39. f3 {[%emt 0:00:14]} Kh7 {[%emt 0:00:47]} 40. Ba1 {[%emt 0:00:41]} axb3 {[%emt 0:01:04]} 41. axb3 {[%emt 0:00:01]} Ra8 {[%emt 0:00:05]} 42. Bb2 {[%emt 0:00:24]} Ra2 {[%emt 0:00:21]} 43. Qb1 {[%emt 0:00:22]} Ra8 {[%emt 0:00:41]} 44. Qd3 {[%emt 0:00:01]} Ra6 {[%emt 0:01:01]} 45. b4 {[%emt 0:01:51]} Ra4 {[%emt 0:00:28]} 46. Qb3 {[%emt 0:00:18]} Qd7 {[%emt 0:00:28]} 47. Rf4 {[%emt 0:00:32]} Kg7 {[%emt 0:00:07]} 48. g4 {[%emt 0:00:32]} hxg4 {[%emt 0:00:15]} 49. fxg4 {[%emt 0:00:05]} Be5 {[%emt 0:00:45]} 50. Re4 {[%emt 0:00:30]} Qc6 {[%emt 0:00:42]} 51. Qf3 {[%emt 0:00:01]} Rxb4 {[%emt 0:00:41]} 52. Ba3 {[%emt 0:02:05]} Rb3 {[%emt 0:00:31]} 53. Qxb3 {[%emt 0:00:00]} Qxe4+ {[%emt 0:00:01]} 54. Qf3 {[%emt 0:00:21]} Qc2+ {[%emt 0:01:01]} 55. Kf1 {[%emt 0:00:32]} d3 {[%emt 0:00:31]} 56. Qe4 {[%emt 0:00:00]} Qb1+ {[%emt 0:00:31]} 57. Kg2 {[%emt 0:00:19]} Qc2+ {[%emt 0:00:07]} 58. Kf1 {[%emt 0:00:02]} Qc3 {[%emt 0:00:41]} 59. Bb4 {[%emt 0:00:42]} Qa1+ {[%emt 0:00:40]} 60. Kg2 {[%emt 0:00:05]} Qb2+ {[%emt 0:00:00]} 61. Kf3 {[%emt 0:00:36]} Qh2 {[%emt 0:00:59]} 62. Qe1 {[%emt 0:01:46]} Qf4+ {[%emt 0:00:06]} 63. Kg2 {[%emt 0:00:06]} Qxg4+ {[%emt 0:00:05]} 64. Kf1 {[%emt 0:00:36]} Qh3+ {[%emt 0:00:05]} 65. Kg1 {[%emt 0:00:19]} Bc3 {[%emt 0:02:19]} 0-1

[Event "Lliga Catalana 2024"]
[Site "Catalonia"]
[Date "2024.01.27"]
[Round "2.8"]
[White "Ayza Leon, David"]
[Black "Molina Carretero, Daniel"]
[Result "1/2-1/2"]
[ECO "B13"]
[WhiteElo "2224"]
[BlackElo "2180"]
[Annotator "RC"]
[PlyCount "84"]
[EventDate "2024.01.18"]
[EventType "team-tourn"]
[EventCountry "ESP"]
[SourceTitle "playchess.com"]
[Source "ChessBase"]
[SourceQuality "1"]
[TimeControl "5400+30"]

1. e4 {[%emt 0:00:04]} c6 {[%emt 0:00:12]} 2. d4 {[%emt 1:31:26]} d5 {[%emt 0:00:16]} 3. exd5 {[%emt 0:00:00]} cxd5 {[%emt 0:00:33]} 4. Bd3 {[%emt 0:00:00]} Nc6 {[%emt 0:00:24]} 5. c3 {[%emt 0:00:00]} e6 {[%emt 0:00:39]} 6. Bf4 {[%emt 0:00:00]} Nge7 {[%emt 0:00:24]} 7. Ne2 {[%emt 0:00:00]} Ng6 {[%emt 0:02:29]} 8. Bg3 {[%emt 0:00:00]} Bd6 {[%emt 1:29:33]} 9. Bxd6 {[%emt 0:00:00]} Qxd6 {[%emt 0:00:00]} 10. O-O {[%emt 0:00:00]} O-O {[%emt 0:00:00]} 11. f4 {[%emt 0:00:00]} Bd7 {[%emt 0:00:00]} 12. Nd2 {[%emt 0:00:00]} Rae8 {[%emt 0:00:00]} 13. Qe1 {[%emt 0:00:00]} f6 {[%emt 0:00:00]} 14. Qg3 {[%emt 0:00:00]} Nce7 {[%emt 0:00:00]} 15. Rae1 {[%emt 0:00:00]} Nf5 {[%emt 0:00:00]} 16. Qh3 {[%emt 0:00:00]} Nh6 {[%emt 0:00:00]} 17. Bxg6 {[%emt 0:00:00]} hxg6 {[%emt 0:00:00]} 18. Qg3 {[%emt 0:00:00]} Kf7 {[%emt 0:00:00]} 19. Nf3 {[%emt 0:00:00]} Nf5 {[%emt 0:00:00]} 20. Qf2 {[%emt 0:00:00]} Qb6 {[%emt 0:00:00]} 21. g4 {[%emt 0:00:00]} Nd6 {[%emt 0:00:00]} 22. b3 {[%emt 0:00:00]} Bb5 {[%emt 0:00:00]} 23. Qe3 {[%emt 0:00:00]} Bxe2 {[%emt 0:00:00]} 24. Rxe2 {[%emt 0:00:00]} Ne4 {[%emt 0:00:00]} 25. Nd2 {[%emt 0:00:00]} Nxd2 {[%emt 0:00:00]} 26. Qxd2 {[%emt 0:00:00]} Rh8 {[%emt 0:00:00]} 27. Rf3 {[%emt 0:00:00]} Rh4 {[%emt 0:00:00]} 28. h3 {[%emt 0:00:00]} Reh8 {[%emt 0:00:00]} 29. Kg2 {[%emt 0:00:00]} Qd6 {[%emt 0:00:00]} 30. Qe1 {[%emt 0:00:00]} a6 {[%emt 0:00:00]} 31. Qf2 {[%emt 0:00:00]} g5 {[%emt 0:00:00]} 32. Ree3 {[%emt 0:00:00]} gxf4 {[%emt 0:00:00]} 33. Rxf4 {[%emt 0:00:00]} Ke7 {[%emt 0:05:03]} 34. Rg3 {[%emt 0:00:00]} R8h6 {[%emt 0:01:17]} 35. Rff3 {[%emt 0:00:11]} g5 {[%emt 0:00:30]} 36. Re3 {[%emt 0:01:34]} Kf7 {[%emt 0:00:43]} 37. Kg1 {[%emt 0:02:06]} Qf4 {[%emt 0:01:39]} 38. Rgf3 {[%emt 0:01:42]} Qxg4+ {[%emt 0:00:24]} 39. hxg4 {[%emt 0:02:10]} Rh1+ {[%emt 0:00:06]} 40. Kg2 {[%emt 0:00:11]} R6h2+ {[%emt 0:00:05]} 41. Kg3 {[%emt 0:00:03]} Rh3+ {[%emt 0:00:05]} 42. Kg2 {[%emt 0:00:14]} R3h2+ {[%emt 0:07:08]} 1/2-1/2

[Event "Lliga Catalana 2024"]
[Site "Catalonia"]
[Date "2024.01.27"]
[Round "2.8"]
[White "Rovira Vila, Jaume"]
[Black "Nadal Fajardo, Ricard"]
[Result "1/2-1/2"]
[ECO "A13"]
[WhiteElo "2074"]
[BlackElo "2025"]
[Annotator "NA RC"]
[PlyCount "82"]
[EventDate "2024.01.18"]
[EventType "team-tourn"]
[EventCountry "ESP"]
[SourceTitle "playchess.com"]
[Source "ChessBase"]
[SourceQuality "1"]
[TimeControl "5400+30"]

1. Nf3 {[%emt 0:00:03]} Nf6 {[%emt 0:00:14]} 2. b3 {[%emt 0:00:27]} e6 {[%emt 0:02:31]} 3. Bb2 {[%emt 0:01:23]} d5 {[%emt 0:00:37]} 4. c4 {[%emt 0:00:19]} Be7 {[%emt 0:00:39]} 5. e3 {[%emt 0:01:44]} O-O {[%emt 0:00:33]} 6. Nc3 {[%emt 0:02:32]} b6 {[%emt 0:01:01]} 7. cxd5 {[%emt 0:03:04]} Nxd5 {[%emt 0:01:25]} 8. Nxd5 {[%emt 0:01:42]} Qxd5 {[%emt 0:03:00]} 9. Bc4 {[%emt 0:13:41]} Qd8 {[%emt 0:11:06]} 10. Qc2 {[%emt 0:08:00]} Bb7 {[%emt 0:11:44]} 11. Bd3 {[%emt 0:08:37]} h6 {[%emt 0:04:16]} 12. Bh7+ {[%emt 0:00:36]} Kh8 {[%emt 0:00:20]} 13. Be4 {[%emt 0:00:08]} Bxe4 {[%emt 0:03:14]} 14. Qxe4 {[%emt 0:00:05]} Nd7 {[%emt 0:01:19]} 15. Qf4 {[%emt 0:15:28]} Bf6 {[%emt 0:01:35]} 16. Bxf6 {[%emt 0:01:27]} Qxf6 {[%emt 0:13:44]} 17. Qxf6 {[%emt 0:00:48]} gxf6 {[%emt 0:03:38]} 18. b4 {[%emt 0:09:25]} c5 {[%emt 0:00:49]} 19. a3 {[%emt 0:05:05]} a6 {[%emt 0:19:29]} 20. Ke2 {[%emt 0:04:39]} b5 {[%emt 0:02:11]} 21. Rhc1 {[%emt 0:03:24]} Rfc8 {[%emt 0:04:28]} 22. d3 {[%emt 0:01:36]} a5 {[%emt 0:04:29]} 23. bxc5 {[%emt 0:03:18]} Nxc5 {[%emt 0:01:00]} 24. Nd4 {[%emt 0:08:48]} Rab8 {[%emt 0:00:22]} 25. Rab1 {[%emt 0:00:21]} Na4 {[%emt 0:03:26]} 26. Kd2 {[%emt 0:02:30]} Rxc1 {[%emt 0:00:50]} 27. Rxc1 {[%emt 0:00:17]} b4 {[%emt 0:00:26]} 28. axb4 {[%emt 0:03:32]} axb4 {[%emt 0:01:24]} 29. Rb1 {[%emt 0:00:50]} Rb6 {[%emt 0:02:15]} 30. Nb3 {[%emt 0:00:29]} Nc3 {[%emt 0:01:46]} 31. Ra1 {[%emt 0:00:13]} Kg7 {[%emt 0:00:15]} 32. Nc1 {[%emt 0:00:50]} Nd5 {[%emt 0:00:53]} 33. Nb3 {[%emt 0:00:21]} f5 {[%emt 0:01:16]} 34. d4 {[%emt 0:00:49]} Nc3 {[%emt 0:00:31]} 35. f3 {[%emt 0:00:06]} Nd5 {[%emt 0:00:32]} 36. g3 {[%emt 0:00:13]} Rc6 {[%emt 0:00:10]} 37. Rc1 {[%emt 0:01:07]} Ra6 {[%emt 0:00:27]} 38. Ra1 {[%emt 0:00:04]} Rc6 {[%emt 0:00:20]} 39. Rc1 {[%emt 0:00:09]} Ra6 {[%emt 0:00:15]} 40. Ra1 {[%emt 0:00:06]} Rc6 {[%emt 0:00:12]} 41. Nc5 {[%emt 0:02:44]} e5 1/2-1/2